bitfinex/quotes_ETHUSD_20211001
["timestamp","ask_amount","ask_price","bid_price","bid_amount"]
[1633098405337,1.51643637,3206.7,3206.6,1.48]
[1633098405540,1.00719412,3206.7,3206.6,1.48]
[1633098405736,1.60747017,3206.7,3206.6,1.48]
[1633098405941,0.03139412,3206.7,3206.6,1.48]
[1633098406141,1.65676148,3206.8,3206.6,1.48]
[1633098406336,1.64918777,3206.8,3206.7,1.294]
[1633098406538,1.64918777,3206.8,3206.7,1.48]
[1633098406940,1.64918777,3206.8,3206.7,0.186]
[1633098407541,1.64918777,3206.8,3206.7,1.48]
[1633098408548,1.64918777,3206.8,3206.5,2.0582534]
[1633098408739,1.16444339,3206.8,3206.6,1.294]
[1633098408942,0.4747429,3206.7,3206.5,1.03476614]
[1633098409142,8.36807139,3206.7,3206.5,1.03476614]
[1633098409448,8.36807139,3206.7,3206.0,0.003]
[1633098409451,1.03476614,3206.5,3206.0,0.003]
[1633098409646,0.98873542,3206.4,3206.0,0.003]
[1633098409945,1.77795709,3206.2,3206.0,0.003]
[1633098410142,1.17407735,3206.1,3206.0,0.003]
[1633098410343,3.31679392,3206.1,3206.0,1.603]
[1633098410539,2.70973968,3206.1,3206.0,1.603]
[1633098410739,3.24936184,3206.1,3206.0,1.603]
[1633098410940,2.70973968,3206.1,3206.0,1.603]
[1633098411145,3.24645282,3206.1,3206.0,1.603]
[1633098411544,2.70973968,3206.1,3206.0,1.603]
[1633098411739,3.2050122,3206.1,3206.0,1.603]
[1633098411942,27.50176343,3206.1,3206.0,1.6021]
[1633098412144,9.28176343,3206.1,3206.0,1.6021]
[1633098412341,10.81403971,3206.1,3206.0,1.6021]
[1633098412540,7.85,3206.0,3205.3,0.003]
[1633098412739,1.294,3205.7,3205.3,0.003]
[1633098412942,1.294,3205.7,3205.3,0.93967201]
[1633098412943,1.63948768,3205.6,3205.3,0.93967201]
[1633098413141,1.63948768,3205.6,3205.3,0.003]
[1633098413345,1.63948768,3205.6,3205.2,3.12114]
[1633098413346,12.1297447,3205.5,3205.2,3.12114]
[1633098413546,12.1297447,3205.5,3204.5,0.009]
[1633098413547,12.05,3205.0,3204.5,0.009]
[1633098413752,0.02440757,3204.6,3204.5,0.009]
[1633098413943,0.186,3204.6,3204.5,0.009]
[1633098414144,0.186,3204.6,3204.5,1.85627798]
[1633098414340,0.186,3204.6,3204.5,0.92571132]
[1633098414549,0.186,3204.6,3204.5,0.009]
[1633098414941,4.86805,3204.6,3204.5,0.009]
[1633098415343,5.66280564,3204.6,3204.5,0.009]
[1633098415544,6.95680564,3204.6,3204.5,0.009]
[1633098415742,7.28581279,3204.6,3204.5,0.009]
[1633098416350,4.45,3204.5,3204.4,0.006]
[1633098416544,1.48,3204.5,3204.4,0.006]
[1633098416746,0.6511477,3204.5,3204.4,0.006]
[1633098422148,0.6511477,3204.5,3204.4,1.606]
[1633098422552,6.46333113,3204.9,3204.4,1.606]
[1633098422553,0.52896174,3205.9,3205.5,0.84071319]
[1633098422754,0.8846029,3206.0,3205.5,0.84071319]
[1633098422755,0.8846029,3206.0,3205.8,11.45564293]
[1633098422758,0.59529365,3206.0,3205.8,11.45564293]
[1633098422951,0.003,3206.0,3205.8,11.45564293]
[1633098423556,0.003,3206.0,3205.9,0.76227234]
[1633098423749,0.003,3206.0,3205.9,0.94827234]
[1633098423951,0.003,3206.0,3205.9,0.186]
[1633098424152,0.003,3206.0,3205.5,0.84071319]
[1633098424348,0.003,3206.0,3205.5,1.02671319]
[1633098424951,0.87965025,3205.9,3205.5,1.02671319]
[1633098425258,1.294,3205.7,3205.5,0.84071319]
[1633098425454,1.294,3205.7,3205.0,0.003]
[1633098425455,0.99525751,3205.8,3205.0,0.003]
[1633098425461,1.92318929,3205.2,3205.0,0.003]
[1633098425652,1.92318929,3205.2,3204.8,0.003]
[1633098425655,1.3131,3205.0,3204.8,0.003]
[1633098425850,1.55336175,3205.0,3204.7,0.003]
[1633098426056,2.37801886,3205.2,3204.7,0.003]
[1633098426059,0.47379888,3204.9,3204.7,0.003]
[1633098426250,1.95040044,3205.1,3204.7,0.003]
[1633098426251,1.86161431,3205.1,3204.7,0.003]
[1633098426458,0.65475315,3205.1,3204.7,0.003]
[1633098426654,0.65475315,3205.1,3204.7,0.09124483]
[1633098427049,0.69174217,3205.1,3204.8,0.003]
[1633098427650,1.1026,3205.0,3204.8,0.003]
[1633098431053,1.92318929,3205.2,3204.8,0.003]
[1633098431250,1.92318929,3205.2,3204.8,1.603]
[1633098431657,1.92318929,3205.2,3204.9,0.003]
[1633098431660,2.44765211,3205.2,3204.9,0.003]
[1633098432054,1.92318929,3205.2,3204.9,0.003]
[1633098432451,2.55706927,3205.2,3204.9,0.003]
[1633098432651,2.55706927,3205.2,3205.0,0.76883878]
[1633098432867,2.55706927,3205.2,3205.1,15.644]
[1633098433059,3.12307,3206.0,3205.3,1.85582196]
[1633098433064,0.003,3206.0,3205.3,1.85582196]
[1633098433256,0.003,3206.0,3205.6,0.079913]
[1633098433656,0.003,3206.0,3205.9,5.89349437]
[1633098433857,0.003,3206.0,3205.9,0.89349437]
[1633098434055,0.003,3206.0,3205.9,2.18749437]
[1633098437454,0.003,3206.0,3205.9,2.1958232]
[1633098438255,0.003,3206.0,3205.9,2.3818232]
[1633098439056,0.003,3206.0,3205.9,0.19432883]
[1633098439458,0.003,3206.0,3205.9,0.14691084]
[1633098440058,0.003,3206.0,3205.9,1.10766074]
[1633098442059,0.003,3206.0,3205.9,2.40166074]
[1633098442457,0.003,3206.0,3205.9,4.00166074]
[1633098444058,0.003,3206.0,3205.9,2.70766074]
[1633098446461,0.003,3206.0,3205.9,4.00166074]
[1633098446863,0.003,3206.0,3205.9,2.70766074]
[1633098447064,0.003,3206.0,3205.9,1.74691084]
[1633098448066,0.003,3206.0,3205.9,1.6]
[1633098452172,0.003,3206.0,3205.9,1.786]
[1633098453367,0.003,3206.0,3205.9,3.08]
[1633098453972,0.003,3206.5,3205.9,4.11569797]
[1633098454173,0.003,3206.5,3206.4,14.129913]
[1633098454369,0.003,3206.5,3206.4,14.315913]
[1633098454571,0.003,3206.5,3206.4,15.609913]
[1633098454831,0.003,3206.5,3206.4,16.53175277]
[1633098455172,0.003,3206.5,3206.4,21.20936277]
[1633098455770,0.003,3206.5,3206.4,7.15936277]
[1633098455975,0.003,3206.5,3206.4,8.93842118]
[1633098456469,0.003,3206.5,3206.4,7.15936277]
[1633098463572,0.003,3206.5,3206.4,8.16936277]
[1633098463836,0.003,3206.5,3206.4,7.15936277]
[1633098466575,0.003,3206.5,3206.4,5.86536277]
[1633098466839,0.003,3206.5,3206.4,0.186]
[1633098466980,0.003,3206.5,3205.9,1.6]
[1633098467579,1.14230347,3206.0,3205.9,1.6]
[1633098467785,1.6256595,3206.0,3205.9,1.6]
[1633098467976,1.6256595,3206.0,3205.4,0.003]
[1633098467979,2.97555474,3206.0,3205.4,0.003]
[1633098468180,1.14230347,3206.0,3205.4,0.003]
[1633098468376,1.96657365,3205.9,3205.4,0.003]
[1633098468578,1.35732638,3206.0,3205.4,0.003]
[1633098468579,0.32480753,3206.0,3205.4,0.003]
[1633098468779,1.96299012,3206.0,3205.4,0.003]
[1633098468972,4.47491,3206.1,3205.8,0.81766435]
[1633098469172,0.5125337,3206.0,3205.8,0.81766435]
[1633098469378,0.003,3206.5,3205.8,0.81766435]
[1633098469576,0.45577769,3206.4,3205.8,0.81766435]
[1633098469773,0.003,3206.5,3205.8,0.81766435]
[1633098470574,0.003,3206.5,3205.8,5.49671435]
[1633098472843,0.003,3206.5,3205.8,6.29671435]
[1633098473175,0.003,3206.5,3206.1,3.1187645]
[1633098473577,0.003,3206.5,3205.9,4.67873]
[1633098474576,0.003,3206.5,3206.4,0.0192]
[1633098474777,0.003,3206.5,3206.4,0.02960943]
[1633098476181,1.62092523,3206.5,3206.4,0.02960943]
[1633098476380,0.32692523,3206.5,3206.4,0.02960943]
[1633098477177,1.62092523,3206.5,3206.4,0.02960943]
[1633098477780,0.32692523,3206.5,3206.4,0.02960943]
[1633098478380,1.62092523,3206.5,3206.4,0.02960943]
[1633098479382,0.32692523,3206.5,3206.4,0.02960943]
[1633098479783,1.62092523,3206.5,3206.4,0.02960943]
[1633098481380,0.32692523,3206.5,3206.4,0.02960943]
[1633098481582,1.62092523,3206.5,3206.4,0.02960943]
[1633098481781,1.297,3206.5,3205.8,0.70891943]
[1633098481981,0.46911339,3206.4,3205.8,0.70891943]
[1633098482180,1.08902085,3206.2,3205.8,0.70891943]
[1633098482581,0.63244985,3206.1,3205.8,0.70891943]
[1633098482984,0.03276807,3206.2,3205.8,0.70891943]
[1633098483183,0.29758283,3206.3,3205.8,0.70891943]
[1633098484389,0.53411029,3206.4,3205.8,0.70891943]
[1633098484585,0.003,3206.5,3205.8,0.70891943]
[1633098485585,0.003,3206.5,3205.8,5.38790943]
[1633098486185,0.003,3206.5,3205.8,8.50700813]
[1633098486390,0.003,3206.5,3205.8,3.82801813]
[1633098486694,0.003,3206.5,3206.3,0.079913]
[1633098486889,0.003,3206.5,3206.4,14.536]
[1633098487689,0.003,3206.5,3206.4,0.186]
[1633098487887,0.003,3206.5,3206.4,1.48]
[1633098488087,0.003,3206.5,3206.4,5.68]
[1633098488487,0.003,3206.5,3206.4,10.35711]
[1633098491789,0.003,3206.5,3206.4,11.93485412]
[1633098492190,0.003,3206.5,3206.4,13.56785412]
[1633098492596,0.003,3206.5,3206.4,11.99011]
[1633098492789,0.003,3206.5,3206.4,13.56809724]
[1633098493590,0.003,3206.5,3206.4,9.36809724]
[1633098494991,1.1441,3206.9,3206.5,14.353]
[1633098495191,0.591,3207.2,3206.7,1.294]
[1633098495394,0.591,3207.2,3206.8,0.265913]
[1633098495591,1.20739171,3207.2,3206.9,0.186]
[1633098495796,1.20739171,3207.2,3207.0,4.67688]
[1633098495997,1.20739171,3207.2,3207.0,0.98189842]
[1633098496994,1.20739171,3207.2,3206.9,0.186]
[1633098497396,0.00966276,3207.1,3207.0,4.67729]
[1633098499994,0.00966276,3207.1,3206.9,0.186]
[1633098501199,0.00966276,3207.1,3206.9,4.86343]
[1633098502873,0.00966276,3207.1,3206.9,5.56343]
[1633098502998,0.00966276,3207.1,3207.0,1.294]
[1633098503198,0.00966276,3207.1,3207.0,1.373913]
[1633098503397,0.00966276,3207.1,3207.0,0.079913]
[1633098503599,0.00966276,3207.1,3206.9,5.56343]
[1633098505598,0.00966276,3207.1,3206.9,0.886]
[1633098506601,0.00966276,3207.1,3206.9,5.56309]
[1633098514012,1.20739171,3207.2,3207.0,6.7]
[1633098514013,1.16705447,3207.2,3207.0,6.7]
[1633098514209,1.16705447,3207.2,3206.9,5.643003]
[1633098514406,1.16705447,3207.2,3206.9,5.65132912]
[1633098515010,1.16705447,3207.2,3206.9,0.89432612]
[1633098516206,1.16705447,3207.2,3207.0,4.67707]
[1633098516207,0.591,3207.2,3207.0,4.67707]
[1633098516406,0.591,3207.2,3206.9,4.01229582]
[1633098517207,1.15975914,3207.2,3207.0,4.67706]
[1633098517408,0.591,3207.2,3207.0,4.67706]
[1633098518812,0.591,3207.2,3207.1,0.186]
[1633098519008,0.591,3207.2,3207.1,1.6202]
[1633098519609,0.591,3207.2,3207.1,1.62852559]
[1633098520410,0.591,3207.2,3207.1,3.19650845]
[1633098520877,0.591,3207.2,3207.1,1.62852559]
[1633098521010,0.591,3207.2,3207.1,3.19651243]
[1633098521817,1.885,3207.2,3206.9,0.7]
[1633098522013,1.1053359,3207.2,3206.9,0.7]
[1633098522211,0.4667063,3207.2,3206.9,0.7]
[1633098523010,3.5857663,3207.2,3206.9,0.7]
[1633098523211,0.52743587,3207.1,3206.9,0.7]
[1633098524212,5.20536587,3207.1,3206.9,0.7]
[1633098524411,0.52743587,3207.1,3206.9,0.7]
[1633098528313,3.5857663,3207.2,3206.9,0.7]
[1633098528315,0.4667063,3207.2,3206.9,0.7]
[1633098528518,0.4667063,3207.2,3207.0,3.03016424]
[1633098528719,0.4667063,3207.2,3207.1,15.89697267]
[1633098528918,0.4667063,3207.2,3207.1,16.08297267]
[1633098529413,0.4667063,3207.2,3207.1,19.45519902]
[1633098531714,0.4667063,3207.2,3207.1,5.10519902]
[1633098531915,0.4667063,3207.2,3207.1,3.02697267]
[1633098532117,0.003,3207.5,3207.2,0.1242937]
[1633098532316,0.003,3207.5,3207.4,14.96455498]
[1633098532615,0.003,3207.5,3207.4,16.16646927]
[1633098533222,0.003,3208.0,3207.5,14.35]
[1633098533414,0.003,3208.0,3207.9,0.89641432]
[1633098533616,0.003,3208.0,3207.9,1.08241432]
[1633098533816,0.003,3208.0,3207.9,5.75723432]
[1633098538018,0.003,3208.0,3207.9,1.08241432]
[1633098538217,0.003,3208.0,3207.9,7.31578432]
[1633098540216,0.003,3208.0,3207.9,6.41937]
[1633098540421,0.003,3208.0,3207.9,0.186]
[1633098541020,1.297,3208.0,3207.9,0.186]
[1633098541222,1.297,3208.0,3207.2,0.1242937]
[1633098541223,1.00623113,3208.0,3207.3,0.186]
[1633098541419,3.11811,3207.6,3207.5,0.003]
[1633098541922,3.72851051,3207.6,3207.3,0.003]
[1633098542121,0.6498011,3207.5,3207.3,0.003]
[1633098542519,0.47351903,3207.5,3207.3,0.003]
[1633098542720,3.11821,3207.7,3207.3,0.003]
[1633098542721,0.56476809,3207.6,3207.3,0.003]
[1633098543523,0.75080217,3207.4,3207.3,0.003]
[1633098543721,0.75080217,3207.4,3207.3,0.703]
[1633098543922,3.1182,3207.6,3207.3,0.703]
[1633098544321,0.4878092,3207.5,3207.4,0.003]
[1633098544522,3.1182,3207.6,3207.4,0.003]
[1633098544721,0.64106268,3207.5,3207.4,0.003]
[1633098544922,3.1182,3207.6,3207.4,0.003]
[1633098545121,0.55643944,3207.5,3207.4,0.003]
[1633098545320,3.1182,3207.6,3207.4,0.01132486]
[1633098545722,3.1182,3207.6,3207.5,0.003]
[1633098547925,3.92560671,3207.6,3207.5,0.003]
[1633098548524,5.21960671,3207.6,3207.5,0.003]
[1633098549124,6.13749221,3207.6,3207.5,0.003]
[1633098550924,5.21960671,3207.6,3207.5,0.003]
[1633098551924,3.92560671,3207.6,3207.5,0.003]
[1633098552325,3.11821,3207.7,3207.5,0.003]
[1633098553325,3.11821,3207.7,3207.5,4.67914]
[1633098553993,3.11821,3207.7,3207.5,0.003]
[1633098555792,0.55894341,3207.6,3207.5,0.003]
[1633098555989,3.11821,3207.7,3207.5,0.003]
[1633098556390,0.49299339,3207.6,3207.5,0.003]
[1633098556592,0.59352219,3207.6,3207.5,0.003]
[1633098556792,0.59352219,3207.6,3207.3,0.61132486]
[1633098559998,3.11828,3207.5,3207.3,0.61132486]
[1633098560399,1.17239645,3207.4,3207.3,0.61132486]
[1633098562007,1.17239645,3207.4,3207.0,0.003]
[1633098562008,0.1242937,3207.2,3207.0,0.003]
[1633098562203,8.15416229,3207.1,3207.0,0.003]
[1633098562405,1.00416229,3207.1,3206.4,0.006]
[1633098562602,1.00416229,3207.1,3206.3,0.006]
[1633098562603,4.19476012,3207.0,3206.3,0.006]
[1633098562802,4.19476012,3207.0,3206.0,0.003]
[1633098562803,0.7138537,3206.6,3206.4,1.54881278]
[1633098563002,0.7138537,3206.6,3206.0,0.009]
[1633098563003,1.17954338,3206.5,3206.0,0.009]
[1633098563202,7.06622792,3206.6,3206.5,0.006]
[1633098563403,3.8330637,3206.6,3206.5,0.006]
[1633098563603,3.8330637,3206.6,3206.2,0.006]
[1633098563801,3.8330637,3206.6,3206.3,1.54893714]
[1633098564002,3.8330637,3206.6,3206.4,1.5490649]
[1633098564203,4.73892921,3206.6,3206.4,0.006]
[1633098564407,4.73892921,3206.6,3206.5,0.006]
[1633098564603,4.73892921,3206.6,3206.0,0.009]
[1633098564805,4.73892921,3206.6,3206.1,1.56037528]
[1633098565204,4.73892921,3206.6,3206.2,0.006]
[1633098565404,4.73892921,3206.6,3206.3,1.56013292]
[1633098565805,4.73892921,3206.6,3206.4,0.006]
[1633098566208,3.8330637,3206.6,3206.4,0.006]
[1633098566408,3.8330637,3206.6,3205.9,0.009]
[1633098566607,3.8330637,3206.6,3206.0,1.55956913]
[1633098567007,3.8330637,3206.6,3206.1,0.006]
[1633098567204,3.8330637,3206.6,3206.2,1.55806613]
[1633098567611,3.8330637,3206.6,3206.3,0.006]
[1633098567805,3.11921,3206.6,3206.3,0.006]
[1633098568010,3.11927,3206.8,3206.3,0.006]
[1633098568011,3.11924,3206.9,3206.4,1.55496861]
[1633098568404,3.11924,3206.9,3206.5,1.56070471]
[1633098568605,3.11924,3206.9,3206.5,0.006]
[1633098568804,0.80247357,3206.7,3206.6,0.003]
[1633098569004,0.80247357,3206.7,3206.1,0.006]
[1633098569205,0.80247357,3206.7,3206.3,4.67792]
[1633098569405,0.80247357,3206.7,3206.4,1.55608428]
[1633098569608,0.80247357,3206.7,3206.5,1.55615468]
[1633098569807,0.80247357,3206.7,3206.5,1.56215468]
[1633098570004,0.80247357,3206.7,3206.6,0.003]
[1633098570404,0.80247357,3206.7,3206.2,0.006]
[1633098570607,0.80247357,3206.7,3206.3,1.55457544]
[1633098571006,0.80247357,3206.7,3206.4,1.56071299]
[1633098571204,0.80247357,3206.7,3206.5,1.55482269]
[1633098571404,0.80247357,3206.7,3206.5,0.006]
[1633098571607,0.80247357,3206.7,3206.6,0.003]
[1633098571806,0.80247357,3206.7,3206.1,0.006]
[1633098572007,0.80247357,3206.7,3206.3,4.67803]
[1633098572215,0.80247357,3206.7,3206.4,1.55454533]
[1633098572407,0.80247357,3206.7,3206.4,1.56054533]
[1633098572606,0.80247357,3206.7,3206.5,0.006]
[1633098573008,0.80247357,3206.7,3206.1,0.006]
[1633098573207,0.80247357,3206.7,3206.3,0.84852959]
[1633098573406,3.11924,3206.9,3206.4,1.55455677]
[1633098573609,3.11924,3206.9,3206.4,6.23846677]
[1633098573810,3.11924,3206.9,3206.5,0.006]
[1633098574610,3.84992543,3206.9,3206.5,0.006]
[1633098576409,3.11924,3206.9,3206.5,0.006]
[1633098576612,3.11924,3206.9,3206.4,0.006]
[1633098576810,3.11924,3206.9,3206.5,1.54470391]
[1633098577009,3.11924,3206.9,3206.6,4.67757]
[1633098577212,3.11924,3206.9,3206.6,4.68057]
[1633098577413,3.11924,3206.9,3206.7,0.003]
[1633098577810,3.11924,3206.9,3206.5,1.53406439]
[1633098578013,3.11924,3206.9,3206.6,4.67762]
[1633098578212,3.11924,3206.9,3206.6,4.68062]
[1633098578414,3.11924,3206.9,3206.7,0.003]
[1633098578814,3.11924,3206.9,3206.5,0.006]
[1633098579215,3.11924,3206.9,3206.4,4.68391]
[1633098579413,3.11924,3206.9,3206.5,1.54490273]
[1633098579616,3.11924,3206.9,3206.5,1.55090273]
[1633098579617,1.20331206,3206.7,3206.5,1.55090273]
[1633098579816,1.20331206,3206.7,3206.6,0.003]
[1633098580018,3.11924,3206.9,3206.6,0.003]
[1633098580215,3.11924,3206.9,3206.1,0.006]
[1633098580415,3.11924,3206.9,3206.2,1.5480045]
[1633098580417,3.77693487,3206.8,3206.2,1.5480045]
[1633098580616,3.77693487,3206.8,3206.1,0.006]
[1633098580617,1.294,3206.5,3206.1,0.006]
[1633098580819,3.96293487,3206.8,3206.0,0.003]
[1633098580820,4.15201516,3206.4,3206.3,0.006]
[1633098581019,1.10764258,3206.3,3205.7,0.009]
[1633098581214,0.75948883,3206.1,3205.8,1.55019246]
[1633098581414,0.75948883,3206.1,3205.6,0.009]
[1633098581415,7.79937,3206.0,3205.6,0.009]
[1633098581614,7.79937,3206.0,3205.9,0.009]
[1633098581815,7.79937,3206.0,3205.4,0.012]
[1633098582015,7.79937,3206.0,3205.8,0.009]
[1633098582216,3.11972,3206.0,3205.8,0.009]
[1633098582413,6.30306427,3206.0,3205.6,0.009]
[1633098582617,6.30306427,3206.0,3205.7,1.54993831]
[1633098582618,6.30242349,3206.0,3205.7,1.54993831]
[1633098582814,3.11977,3205.7,3205.5,0.98495262]
[1633098583013,3.11977,3205.7,3205.6,1.54983439]
[1633098583213,3.11977,3205.7,3205.6,1.55883439]
[1633098583417,3.11977,3205.7,3205.6,0.009]
[1633098583617,6.37688522,3205.7,3205.6,0.009]
[1633098583819,6.37688522,3205.7,3205.4,0.012]
[1633098584019,7.00744972,3205.7,3205.4,0.012]
[1633098585016,3.1203,3205.6,3205.4,0.012]
[1633098585219,6.2404872,3205.6,3205.4,0.012]
[1633098585416,3.1203,3205.6,3205.4,0.012]
[1633098585617,0.03110213,3205.6,3205.4,0.012]
[1633098586017,3.7503345,3205.7,3205.4,0.012]
[1633098587421,1.469,3205.5,3205.4,0.012]
[1633098587619,3.3173936,3205.5,3205.4,0.012]
[1633098587828,5.03000357,3205.5,3205.4,0.012]
[1633098588019,1.74380161,3205.5,3205.4,0.012]
[1633098588221,1.77716868,3205.5,3205.4,0.012]
[1633098589818,0.51546868,3205.5,3205.4,0.012]
[1633098590020,1.069,3205.6,3205.4,0.012]
[1633098590219,1.10829031,3205.6,3205.4,0.012]
[1633098593027,3.1200382,3205.5,3205.4,0.012]
[1633098593421,4.93323299,3205.5,3205.4,0.012]
[1633098596823,0.64919479,3205.5,3205.4,0.012]
[1633098597025,1.62029479,3205.5,3205.4,0.012]
[1633098598229,4.74033609,3205.5,3205.4,0.012]
[1633098600029,1.62029479,3205.5,3205.4,0.012]
[1633098600836,4.89006367,3205.5,3205.4,0.012]
[1633098601037,1.30202387,3205.3,3204.8,0.003]
[1633098601240,0.043153,3205.1,3204.8,0.003]
[1633098601434,1.94353473,3205.0,3204.8,0.003]
[1633098601632,4.44864646,3204.9,3204.8,0.003]
[1633098601897,3.68039612,3204.9,3204.8,0.003]
[1633098602136,1.74754966,3204.9,3204.8,0.003]
[1633098602333,9.75083796,3204.9,3204.7,0.006]
[1633098602533,3.70095628,3204.8,3204.7,0.006]
[1633098602734,2.16080948,3205.0,3204.7,0.006]
[1633098602736,0.59218087,3204.9,3204.7,0.006]
[1633098602933,0.59218087,3204.9,3204.6,1.37985223]
[1633098602934,6.64218087,3204.9,3204.6,1.37985223]
[1633098603133,0.59218087,3204.9,3204.6,1.37985223]
[1633098603337,1.82800008,3204.8,3204.6,1.37985223]
[1633098603536,6.2433,3204.8,3204.6,1.37985223]
[1633098603733,6.2433,3204.8,3204.5,0.009]
[1633098603934,3.12177,3204.7,3204.5,0.009]
[1633098604136,3.69499371,3204.7,3204.5,0.009]
[1633098604334,3.73060936,3204.7,3204.5,0.009]
[1633098604534,3.73060936,3204.7,3204.3,0.006]
[1633098604535,1.294,3204.6,3203.8,0.00537409]
[1633098604735,0.71847471,3204.0,3203.8,0.00537409]
[1633098604934,3.12148,3204.0,3203.8,0.00537409]
[1633098605334,3.15930047,3204.0,3203.8,0.00537409]
[1633098606636,3.15930047,3204.0,3203.4,0.95369707]
[1633098606835,3.16230047,3204.0,3203.5,1.55042593]
[1633098607136,3.16230047,3204.0,3203.4,0.87378407]
[1633098607137,4.76230047,3204.0,3203.4,0.87378407]
[1633098607335,4.76230047,3204.0,3203.4,5.55583407]
[1633098607537,4.76230047,3204.0,3203.4,0.87378407]
[1633098608136,1.08945168,3203.9,3203.4,0.87378407]
[1633098608937,1.08945168,3203.9,3203.3,4.954103]
[1633098609136,1.08945168,3203.9,3203.6,0.01008448]
[1633098609945,4.76230047,3204.0,3203.6,0.01008448]
[1633098610139,4.76230047,3204.0,3203.6,4.69194448]
[1633098610347,4.76230047,3204.0,3203.8,1.373913]
[1633098610348,1.603,3204.0,3203.8,1.373913]
[1633098610538,1.603,3204.0,3203.9,0.186]
[1633098611538,9.1,3203.9,3203.8,0.079913]
[1633098611743,9.1,3203.9,3203.6,0.01008448]
[1633098611744,0.079913,3203.8,3203.6,0.01008448]
[1633098611944,0.65468757,3203.8,3203.6,0.01008448]
[1633098612342,4.68326,3203.7,3203.6,0.01008448]
[1633098612741,7.40199421,3203.7,3203.6,0.01008448]
[1633098613141,7.4406993,3203.7,3203.6,0.01008448]
[1633098613341,7.40199421,3203.7,3203.6,0.01008448]
[1633098613544,7.43254406,3203.7,3203.6,0.01008448]
[1633098613744,2.74928406,3203.7,3203.6,0.01008448]
[1633098613941,0.59365467,3203.7,3203.6,0.01008448]
[1633098614142,0.03054985,3203.7,3203.6,0.01008448]
[1633098614346,0.079913,3203.8,3203.6,0.01008448]
[1633098614741,0.079913,3203.8,3203.4,0.079913]
[1633098614944,1.00247897,3203.7,3203.4,0.079913]
[1633098615144,1.00247897,3203.7,3203.6,0.01008448]
[1633098615345,3.12163,3203.7,3203.6,0.01008448]
[1633098615943,0.079913,3203.8,3203.6,0.01008448]
[1633098617208,0.079913,3203.8,3203.5,4.6801534]
[1633098619415,0.079913,3203.8,3203.6,1.48]
[1633098619615,0.079913,3203.8,3203.6,0.186]
[1633098620616,0.079913,3203.8,3203.7,4.68091]
[1633098620812,0.079913,3203.8,3203.6,0.186]
[1633098622612,0.079913,3203.8,3203.6,4.86792]
[1633098629118,0.079913,3203.8,3203.6,0.186]
[1633098629921,0.079913,3203.8,3203.6,4.86783]
[1633098630320,0.079913,3203.8,3203.7,12.094]
[1633098630519,0.079913,3203.8,3203.7,1.294]
[1633098630720,0.079913,3203.8,3203.6,4.86783]
[1633098632925,0.079913,3203.8,3203.7,15.644]
[1633098633126,0.003,3204.5,3204.0,0.079913]
[1633098633326,0.003,3204.5,3204.4,0.079913]
[1633098633526,0.003,3204.5,3204.4,2.019113]
[1633098633723,0.003,3204.5,3204.4,6.698733]
[1633098633925,0.003,3204.5,3204.4,6.61882]
[1633098634330,0.003,3205.0,3204.9,2.21748544]
[1633098634535,0.003,3205.0,3204.9,2.16748544]
[1633098634727,0.003,3205.0,3204.9,2.14748544]
[1633098634932,0.003,3205.0,3204.9,0.54748544]
[1633098635126,1.297,3205.0,3204.5,3.1]
[1633098635326,0.003,3205.0,3204.5,3.286]
[1633098635525,0.8963638,3204.8,3204.5,0.186]
[1633098636526,3.12376,3205.0,3204.5,0.186]
[1633098637525,3.12376,3205.0,3204.5,0.98163492]
[1633098637926,3.12376,3205.0,3204.5,0.186]
[1633098638328,0.003,3205.0,3204.5,0.186]
[1633098639329,0.003,3205.0,3204.5,4.86668]
[1633098639529,0.003,3205.0,3204.5,4.95525084]
[1633098639927,0.003,3205.0,3204.5,0.27457084]
[1633098640327,0.003,3205.0,3204.6,0.92728175]
[1633098641730,0.003,3205.0,3204.5,0.27457084]
[1633098642127,0.003,3205.0,3204.6,0.00091952]
[1633098642528,0.003,3205.0,3204.6,4.68148952]
[1633098643932,0.003,3205.0,3204.7,3.305879]
[1633098645130,0.003,3205.0,3204.8,0.08855682]
[1633098645330,0.003,3205.0,3204.9,0.186]
[1633098647541,0.003,3205.0,3204.9,1.73987379]
[1633098647735,0.003,3205.0,3204.9,0.186]
[1633098648530,0.003,3205.0,3204.9,1.74439861]
[1633098648744,0.003,3206.0,3205.3,1.83930954]
[1633098648945,0.003,3206.0,3205.4,16.16106554]
[1633098649334,0.003,3206.0,3205.4,1.81106554]
[1633098649750,0.003,3206.0,3205.4,10.48836903]
[1633098650143,0.003,3206.0,3205.5,14.35]
[1633098650354,0.003,3206.0,3205.9,0.079913]
[1633098650546,0.003,3206.0,3205.9,0.265913]
[1633098650737,0.003,3206.0,3205.9,2.65062976]
[1633098650935,0.003,3206.0,3205.9,2.65117171]
[1633098651134,0.003,3206.0,3205.9,7.32846171]
[1633098652140,0.003,3206.0,3205.9,12.07246171]
[1633098652340,0.003,3206.0,3205.9,8.62246171]
[1633098652536,2.48,3206.9,3206.2,1.9169043]
[1633098652740,2.48,3206.9,3206.3,0.186]
[1633098652936,2.48,3206.9,3206.3,3.3041648]
[1633098653137,2.48,3206.9,3206.3,7.9814148]
[1633098653739,2.48,3206.9,3206.4,0.82636841]
[1633098653939,2.48,3206.9,3206.4,1.01236841]
[1633098654141,3.3639732,3206.9,3206.4,1.01236841]
[1633098654340,0.8839732,3206.9,3206.4,1.01236841]
[1633098654545,0.003,3207.0,3206.4,0.186]